fUST/lending_fUST_20260128
["ID","MTS","AMOUNT","RATE_DAILY","PERIOD"]
[403844144,1769590240305,-500.0,0.0001342,2]
[403844145,1769590240314,-20253.28355691,0.00013491,2]
[403844149,1769590240327,-4213.84154999,0.00013491,2]
[403844152,1769590240791,-6717.93402893,0.00013491,2]
[403844153,1769590240803,-57540.0719873,0.00013491,2]
[403844177,1769590244465,-378.6421674,0.00013163,2]
[403844178,1769590244474,-13365.05581017,0.00013304,2]
[403844179,1769590244483,-55942.52417934,0.00013491,2]
[403844185,1769590246832,-25878.31559067,0.00013491,2]
[403844186,1769590246844,-1093.13,0.00013491,2]
[403844187,1769590246854,-1293.4479146,0.00013491,2]
[403844377,1769590363242,798.0,0.00030136,120]
[403844526,1769590820939,-159.62665953,0.00012397,2]
[403844527,1769590820966,-85.74668094,0.00012397,2]
[403844528,1769590821028,-148.23391984,0.00012397,2]
[403844530,1769590850216,-245.37334047,0.00012397,2]
[403844599,1769591431570,-1609.79514316,0.00011231,2]
[403844600,1769591431581,-387.23449789,0.00012109,2]
[403844601,1769591431592,-150.22,0.00012816,2]
[403844602,1769591431604,-150.14,0.00012816,2]
[403844603,1769591431616,-150.306,0.00012816,2]
[403844604,1769591431627,-2674.60743027,0.00012936,2]
[403844605,1769591431638,-300.0,0.00012943,2]
[403844606,1769591431649,-501.18204101,0.00012944,2]
[403844607,1769591431660,-630.0,0.00012944,2]
[403844608,1769591431671,-2150.0,0.00012944,2]
[403844609,1769591431683,-1369.0,0.00012944,2]
[403844610,1769591431695,-420.0,0.00012944,2]
[403844611,1769591431705,-191.78332246,0.00012944,2]
[403844612,1769591431719,-226.21667754,0.00012944,2]
[403844613,1769591431731,-344.69250941,0.00012944,2]
[403844614,1769591431745,-371.30749059,0.00012944,2]
[403844615,1769591431757,-180.381,0.00012944,2]
[403844616,1769591431768,-180.0,0.00013043,2]
[403844617,1769591431779,-500.0,0.0001307,2]
[403844618,1769591431790,-532.29510995,0.0001307,2]
[403844619,1769591431802,-500.0,0.0001307,2]
[403844620,1769591431813,-369.4013692,0.0001307,2]
[403844621,1769591431824,-300.0,0.00013071,2]
[403844622,1769591431835,-300.0,0.00013071,2]
[403844623,1769591431846,-300.0,0.00013071,2]
[403844624,1769591431857,-300.0,0.00013071,2]
[403844625,1769591431867,-300.0,0.00013071,2]
[403844626,1769591431879,-300.0,0.00013071,2]
[403844627,1769591431891,-300.0,0.00013071,2]
[403844628,1769591431902,-300.0,0.00013071,2]
[403844629,1769591431913,-300.0,0.00013071,2]
[403844630,1769591431925,-300.0,0.00013071,2]
[403844631,1769591431935,-300.0,0.00013071,2]
[403844632,1769591431945,-300.0,0.00013071,2]
[403844633,1769591431955,-300.0,0.00013071,2]
[403844634,1769591431966,-300.0,0.00013071,2]
[403844635,1769591431977,-300.0,0.00013071,2]
[403844636,1769591431988,-378.7157442,0.000131,2]
[403844637,1769591431997,-378.7157442,0.000131,2]
[403844638,1769591432009,-150.0,0.00013146,2]
[403844639,1769591432021,-150.0,0.00013146,2]
[403844640,1769591432032,-500.0,0.00013146,2]
[403844641,1769591432043,-23.45457655,0.00013146,2]
[403844645,1769591437671,-126.54542345,0.00013146,2]
[403844646,1769591437682,-150.0,0.00013146,2]
[403844647,1769591437693,-225.23401027,0.00013163,2]
[403844648,1769591437704,-3090.93369622,0.00013221,2]
[403844649,1769591437714,-487.45856891,0.00013273,2]
[403844650,1769591437725,-500.0,0.00013273,2]
[403844651,1769591437737,-500.0,0.00013273,2]
[403844652,1769591437748,-500.0,0.00013273,2]
[403844653,1769591437758,-500.0,0.00013273,2]
[403844654,1769591437773,-500.0,0.00013273,2]
[403844655,1769591437788,-50.09298989,0.00013273,2]
[403844656,1769591437802,-449.90701011,0.00013273,2]
[403844657,1769591437812,-150.0,0.00013283,2]
[403844658,1769591437822,-150.0,0.00013283,2]
[403844659,1769591437832,-500.0,0.00013283,2]
[403844660,1769591437842,-150.0,0.00013283,2]
[403844661,1769591437853,-378.7157442,0.000133,2]
[403844662,1769591437863,-378.7157442,0.000133,2]
[403844663,1769591437874,-378.7157442,0.000133,2]
[403844664,1769591437890,-378.7157442,0.000133,2]
[403844665,1769591437911,-500.0,0.000133,2]
[403844666,1769591437928,-779.0,0.000133,2]
[403844667,1769591437940,-600.0,0.00013331,2]
[403844668,1769591437950,-553.64373807,0.00013383,2]
[403844669,1769591437960,-201.93286099,0.00013383,2]
[403844670,1769591437970,-209.40437684,0.00013383,2]
[403844671,1769591437980,-217.15233878,0.00013383,2]
[403844672,1769591437992,-225.18697532,0.00013383,2]
[403844673,1769591438004,-233.51889341,0.00013383,2]
[403844674,1769591438014,-242.15909246,0.00013383,2]
[403844675,1769591438024,-251.11897888,0.00013383,2]
[403844676,1769591438035,-260.4103811,0.00013383,2]
[403844677,1769591438046,-270.0455652,0.00013383,2]
[403844678,1769591438057,-280.03725112,0.00013383,2]
[403844679,1769591438068,-290.39862941,0.00013383,2]
[403844680,1769591438081,-301.1433787,0.00013383,2]
[403844681,1769591438091,-252.95247087,0.0001339,2]
[403844682,1769591438101,-500.0,0.0001339,2]
[403844683,1769591438111,-500.0,0.0001339,2]
[403844684,1769591438122,-319.00164065,0.0001339,2]
[403844685,1769591438133,-286.765,0.0001339,2]
[403844686,1769591438143,-43730.58945714,0.00013391,2]
[403844687,1769591438157,-444.75283443,0.00013391,2]
[403844689,1769591439794,-73618.82613688,0.00013391,2]
[403844707,1769591445804,-378.7157442,0.000132,2]
[403844708,1769591445813,-1603.44581481,0.00013391,2]
[403844761,1769591582362,56058.583594,0.00034904,120]
[403844762,1769591582713,798.0,0.00030136,120]
[403844821,1769591785104,324.0,0.00034904,120]
[403845016,1769592333589,2676.99256006,0.00034915,120]
[403845225,1769592602722,159.62665952,0.00010645,2]
[403845301,1769592631720,-300.0,0.0001147,2]
[403845412,1769592637933,-84.26699997,0.0001147,2]
[403845413,1769592637943,-2153.53820043,0.00011965,2]
[403845414,1769592637954,-327.71,0.000127,2]
[403845415,1769592637964,-300.0,0.00013035,2]
[403845416,1769592637974,-1325.00428558,0.00013036,2]
[403845417,1769592637986,-1349.60314469,0.00013036,2]
[403845418,1769592637996,-2150.0,0.00013044,2]
[403845419,1769592638006,-1369.0,0.00013044,2]
[403845420,1769592638016,-630.0,0.00013044,2]
[403845421,1769592638027,-277.20328695,0.00013044,2]
[403845422,1769592638040,-140.79671305,0.00013044,2]
[403845423,1769592638050,-418.0,0.00013044,2]
[403845424,1769592638060,-716.0,0.00013044,2]
[403845425,1769592638070,-180.381,0.00013044,2]
[403845426,1769592638080,-103.92909004,0.00013146,2]
[403845427,1769592638096,-1957.856,0.00013036,2]
[403845429,1769592638107,-46.07090996,0.00013146,2]
[403845431,1769592638117,-500.0,0.00013146,2]
[403845432,1769592638128,-150.0,0.00013146,2]
[403845433,1769592638138,-718.06132767,0.00013191,2]
[403845434,1769592638150,-2326.69639381,0.00013191,2]
[403845435,1769592638160,-378.7157442,0.000132,2]
[403845436,1769592638169,-657.0716509,0.000132,2]
[403845437,1769592638179,-378.7157442,0.000132,2]
[403845438,1769592638189,-377.4649386,0.000132,2]
[403845439,1769592638199,-580.7227977,0.000132,2]
[403845440,1769592638209,-156.1050304,0.0001326,2]
[403845441,1769592638219,-434.49896611,0.00013272,2]
[403845442,1769592638229,-152.15570769,0.00013272,2]
[403845443,1769592638238,-500.0,0.00013272,2]
[403845444,1769592638247,-500.0,0.00013273,2]
[403845445,1769592638257,-500.0,0.00013273,2]
[403845446,1769592638266,-112.52471595,0.00013273,2]
[403845447,1769592638278,-295.04921514,0.00013273,2]
[403845448,1769592638294,-92.42606891,0.00013273,2]
[403845449,1769592638304,-500.0,0.00013273,2]
[403845450,1769592638315,-500.0,0.00013273,2]
[403845451,1769592638324,-2142.79494355,0.00013273,2]
[403845452,1769592638334,-272.464,0.00013273,2]
[403845453,1769592638343,-201.93286099,0.00013283,2]
[403845454,1769592638353,-2000.0,0.00013283,2]
[403845455,1769592638362,-209.40437684,0.00013283,2]
[403845456,1769592638372,-2000.0,0.00013283,2]
[403845457,1769592638382,-2000.0,0.00013283,2]
[403845458,1769592638391,-217.15233878,0.00013283,2]
[403845459,1769592638401,-225.18697532,0.00013283,2]
[403845460,1769592638410,-2000.0,0.00013283,2]
[403845461,1769592638420,-1000.0,0.00013283,2]
[403845462,1769592638430,-233.51889341,0.00013283,2]
[403845463,1769592638439,-2000.0,0.00013283,2]
[403845464,1769592638449,-1000.0,0.00013283,2]
[403845465,1769592638459,-242.15909246,0.00013283,2]
[403845466,1769592638469,-2000.0,0.00013283,2]
[403845467,1769592638479,-1000.0,0.00013283,2]
[403845468,1769592638488,-251.11897888,0.00013283,2]
[403845469,1769592638497,-2000.0,0.00013283,2]
[403845470,1769592638507,-1000.0,0.00013283,2]
[403845471,1769592638517,-260.4103811,0.00013283,2]
[403845472,1769592638527,-1636.23460516,0.00013283,2]
[403845473,1769592638537,-1000.0,0.00013283,2]
[403845474,1769592638546,-270.0455652,0.00013283,2]
[403845475,1769592638555,-500.0,0.00013283,2]
[403845476,1769592638566,-280.03725112,0.00013283,2]
[403845477,1769592638576,-290.39862941,0.00013283,2]
[403845478,1769592638586,-301.1433787,0.00013283,2]
[403845479,1769592638596,-553.64373807,0.00013283,2]
[403845480,1769592638606,-150.0,0.00013283,2]
[403845481,1769592638615,-500.0,0.00013283,2]
[403845482,1769592638625,-150.0,0.00013283,2]
[403845483,1769592638634,-628.62423188,0.00013283,2]
[403845484,1769592638644,-500.0,0.0001329,2]
[403845485,1769592638654,-472.84153351,0.0001329,2]
[403845486,1769592638663,-86114.32885119,0.00013291,2]
[403845517,1769592646472,-2030.296672,0.00013091,2]
[403845518,1769592646483,-2138.71331936,0.00013146,2]
[403845519,1769592646493,-101728.00985053,0.00013291,2]
[403845520,1769592646505,-2415.94145061,0.00013291,2]
[403845539,1769592779002,37764.9936796,0.00034919,120]
[403845924,1769593217127,180707.835088,0.00034975,120]
[403845961,1769593245134,500.0,0.0003013,120]
[403845962,1769593324116,407.03,0.0003013,120]
[403845967,1769593463393,10016.41724497,0.00034975,120]
[403845968,1769593524338,1000.17,0.0003012,120]
[403846255,1769593838006,-900.03510505,0.00012003,2]
[403846256,1769593838016,-744.10397169,0.00012003,2]
[403846257,1769593838026,-389.2007902,0.00012264,2]
[403846258,1769593838035,-6149.26366423,0.00012824,2]
[403846259,1769593838044,-267.403,0.00012838,2]
[403846260,1769593838054,-300.0,0.00012991,2]
[403846261,1769593838063,-1200000.0,0.00012992,2]
[403846262,1769593838072,-903.0,0.00013043,2]
[403846263,1769593838081,-903.0,0.00013076,2]
[403846264,1769593838090,-151.0,0.00013092,2]
[403846265,1769593838101,-151.0,0.00013092,2]
[403846266,1769593838110,-151.0,0.00013092,2]
[403846267,1769593838119,-249.37903298,0.00013092,2]
[403846268,1769593838130,-1957.856,0.00013092,2]
[403846269,1769593838141,-1000.0,0.00013092,2]
[403846271,1769593838151,-250.0,0.00013092,2]
[403846273,1769593838161,-500.0,0.00013092,2]
[403846275,1769593838170,-151.0,0.00013092,2]
[403846276,1769593838180,-1000.0,0.00013092,2]
[403846278,1769593838190,-250.0,0.00013092,2]
[403846280,1769593838199,-500.0,0.00013092,2]
[403846281,1769593838208,-151.0,0.00013092,2]
[403846283,1769593838220,-151.0,0.00013092,2]
[403846285,1769593838233,-1000.0,0.00013092,2]
[403846286,1769593838242,-250.72559234,0.00013092,2]
[403846287,1769593838252,-500.0,0.00013092,2]
[403846288,1769593838261,-151.03297792,0.00013092,2]
[403846289,1769593838270,-1000.0,0.00013092,2]
[403846290,1769593838280,-500.0,0.00013092,2]
[403846291,1769593838289,-250.0,0.00013092,2]
[403846292,1769593838299,-250.0,0.00013092,2]
[403846293,1769593838308,-250.0,0.00013092,2]
[403846294,1769593838318,-2398.4119403,0.00013092,2]
[403846295,1769593838327,-599.60298507,0.00013092,2]
[403846296,1769593838336,-181.08010149,0.00013092,2]
[403846297,1769593838346,-187.78006525,0.00013092,2]
[403846298,1769593838355,-181.08010149,0.00013092,2]
[403846299,1769593838364,-194.72792766,0.00013092,2]
[403846300,1769593838374,-201.93286099,0.00013092,2]
[403846301,1769593838383,-209.40437684,0.00013092,2]
[403846302,1769593838392,-217.15233878,0.00013092,2]
[403846303,1769593838401,-225.18697532,0.00013092,2]
[403846304,1769593838411,-233.51889341,0.00013092,2]
[403846305,1769593838421,-496.47127164,0.00013092,2]
[403846306,1769593838430,-242.15909246,0.00013092,2]
[403846307,1769593838440,-251.11897888,0.00013092,2]
[403846308,1769593838449,-181.08010149,0.00013092,2]
[403846309,1769593838459,-260.4103811,0.00013092,2]
[403846310,1769593838468,-270.0455652,0.00013092,2]
[403846311,1769593838477,-280.03725112,0.00013092,2]
[403846312,1769593838487,-290.39862941,0.00013092,2]
[403846313,1769593838496,-301.1433787,0.00013092,2]
[403846314,1769593838505,-250.0,0.00013092,2]
[403846315,1769593838514,-250.0,0.00013092,2]
[403846316,1769593838524,-250.0,0.00013092,2]
[403846317,1769593838533,-250.0,0.00013092,2]
[403846318,1769593838542,-250.0,0.00013092,2]
[403846319,1769593838551,-250.0,0.00013092,2]
[403846320,1769593838560,-365.59568771,0.00013092,2]
[403846321,1769593838571,-155.498,0.00013099,2]
[403846322,1769593838581,-177.06672961,0.00013099,2]
[403846323,1769593838590,-151.0,0.000131,2]
[403846324,1769593838599,-151.0,0.000131,2]
[403846325,1769593838608,-151.0,0.000131,2]
[403846326,1769593838618,-151.0,0.000131,2]
[403846327,1769593838627,-151.0,0.000131,2]
[403846328,1769593838636,-151.0,0.000131,2]
[403846329,1769593838646,-151.0,0.000131,2]
[403846330,1769593838656,-151.0,0.000131,2]
[403846331,1769593838665,-151.0,0.000131,2]
[403846332,1769593838674,-151.0,0.000131,2]
[403846333,1769593838684,-151.0,0.000131,2]
[403846334,1769593838694,-151.0,0.000131,2]
[403846335,1769593838704,-2630.84,0.000131,2]
[403846336,1769593838713,-2630.84,0.000131,2]
[403846337,1769593838723,-2630.84,0.000131,2]
[403846338,1769593838733,-2630.84,0.000131,2]
[403846339,1769593838743,-2630.84,0.000131,2]
[403846340,1769593838752,-2630.84,0.000131,2]
[403846341,1769593838762,-2630.84,0.000131,2]
[403846342,1769593838773,-2630.84,0.000131,2]
[403846343,1769593838782,-2630.84,0.000131,2]
[403846344,1769593838791,-2630.84,0.000131,2]
[403846345,1769593838800,-2630.84,0.000131,2]
[403846346,1769593838810,-2630.84,0.000131,2]
[403846347,1769593838819,-2630.84,0.000131,2]
[403846348,1769593838828,-2630.84,0.000131,2]
[403846349,1769593838837,-2630.84,0.000131,2]
[403846350,1769593838846,-2630.84,0.000131,2]
[403846351,1769593838856,-2630.84,0.000131,2]
[403846352,1769593838865,-2630.84,0.000131,2]
[403846353,1769593838875,-2630.84,0.000131,2]
[403846354,1769593838884,-2630.84,0.000131,2]
[403846355,1769593838894,-2630.84,0.000131,2]
[403846356,1769593838903,-2630.84,0.000131,2]
[403846357,1769593838912,-2630.84,0.000131,2]
[403846358,1769593838922,-2630.84,0.000131,2]
[403846359,1769593838931,-2630.84,0.000131,2]
[403846360,1769593838940,-2630.84,0.000131,2]
[403846361,1769593838950,-2630.84,0.000131,2]
[403846362,1769593838960,-2630.84,0.000131,2]
[403846363,1769593838970,-2630.84,0.000131,2]
[403846364,1769593838979,-2630.84,0.000131,2]
[403846365,1769593838988,-2630.84,0.000131,2]
[403846366,1769593838997,-2630.84,0.000131,2]
[403846367,1769593839007,-2630.84,0.000131,2]
[403846368,1769593839017,-2630.84,0.000131,2]
[403846369,1769593839027,-2630.84,0.000131,2]
[403846370,1769593839036,-2630.84,0.000131,2]
[403846371,1769593839045,-2630.84,0.000131,2]
[403846372,1769593839054,-2630.84,0.000131,2]
[403846373,1769593839063,-2630.84,0.000131,2]
[403846374,1769593839073,-4979.91,0.000131,2]
[403846375,1769593839082,-903.0,0.00013105,2]
[403846376,1769593839092,-903.0,0.0001313,2]
[403846377,1769593839102,-903.0,0.00013131,2]
[403846378,1769593839112,-150.0,0.00013146,2]
[403846379,1769593839122,-500.0,0.00013146,2]
[403846380,1769593839132,-150.0,0.00013146,2]
[403846381,1769593839143,-150.0,0.00013146,2]
[403846382,1769593839155,-150.0,0.00013146,2]
[403846383,1769593839165,-150.0,0.00013146,2]
[403846384,1769593839174,-150.0,0.00013146,2]
[403846385,1769593839183,-150.0,0.00013146,2]
[403846386,1769593839195,-201.59957773,0.00013146,2]
[403846387,1769593839204,-2030.296672,0.00013147,2]
[403846388,1769593839214,-153.0,0.00013152,2]
[403846389,1769593839224,-153.0,0.00013152,2]
[403846390,1769593839234,-2105.41764886,0.00013202,2]
[403846391,1769593839245,-903.0,0.00013215,2]
[403846392,1769593839254,-903.0,0.00013216,2]
[403846393,1769593839264,-1483.3116153,0.00013221,2]
[403846394,1769593839274,-903.0,0.00013229,2]
[403846395,1769593839283,-903.0,0.00013256,2]
[403846396,1769593839294,-2183.31810187,0.00013257,2]
[403846397,1769593839303,-630.0,0.00013271,2]
[403846398,1769593839313,-2150.0,0.00013271,2]
[403846399,1769593839323,-1369.0,0.00013271,2]
[403846400,1769593839332,-150.305,0.00013271,2]
[403846401,1769593839341,-500.0,0.00013273,2]
[403846402,1769593839351,-500.0,0.00013273,2]
[403846403,1769593839360,-500.0,0.00013273,2]
[403846404,1769593839370,-500.0,0.00013273,2]
[403846405,1769593839379,-500.0,0.00013283,2]
[403846406,1769593839389,-150.0,0.00013283,2]
[403846407,1769593839398,-150.0,0.00013283,2]
[403846408,1769593839407,-11753.7868907,0.00013286,2]
[403846409,1769593839417,-1042.3221224,0.00013286,2]
[403846410,1769593839426,-2268.6571162,0.00013286,2]
[403846411,1769593839436,-509.6700428,0.00013286,2]
[403846412,1769593839446,-226.43370663,0.0001329,2]
[403846413,1769593839455,-151.0,0.000133,2]
[403846414,1769593839464,-599.6793574,0.000133,2]
[403846415,1769593839474,-921.14270288,0.000133,2]
[403846416,1769593839483,-2396.31871218,0.000133,2]
[403846417,1769593839493,-761.23983533,0.000133,2]
[403846418,1769593839502,-153.0,0.000133,2]
[403846419,1769593839512,-3680.88624072,0.000133,2]
[403846420,1769593839522,-898.85198256,0.000133,2]
[403846421,1769593839531,-343.1686076,0.000133,2]
[403846422,1769593839540,-3044.95934132,0.000133,2]
[403846423,1769593839549,-509.66245806,0.000133,2]
[403846424,1769593839559,-2038.64983225,0.000133,2]
[403846425,1769593839568,-153.0,0.000133,2]
[403846426,1769593839577,-3595.40793022,0.000133,2]
[403846427,1769593839586,-603.6044869,0.000133,2]
[403846428,1769593839598,-903.0,0.0001331,2]
[403846429,1769593839608,-160.0,0.00013312,2]
[403846430,1769593839617,-2264.10087164,0.00013312,2]
[403846431,1769593839627,-2616.5554567,0.00013356,2]
[403846433,1769593839636,-903.0,0.00013365,2]
[403846435,1769593839646,-2347.87260389,0.00013367,2]
[403846437,1769593839655,-903.0,0.00013386,2]
[403846439,1769593839665,-903.0,0.00013391,2]
[403846441,1769593839674,-1602.858,0.00013391,2]
[403846443,1769593839684,-300.207,0.00013391,2]
[403846445,1769593839693,-475.0,0.00013391,2]
[403846447,1769593839703,-475.0,0.00013391,2]
[403846449,1769593839713,-475.0,0.00013391,2]
[403846451,1769593839722,-475.0,0.00013391,2]
[403846453,1769593839731,-475.0,0.00013391,2]
[403846455,1769593839741,-475.0,0.00013391,2]
[403846457,1769593839751,-903.0,0.00013392,2]
[403846459,1769593839761,-903.0,0.00013397,2]
[403846461,1769593839770,-291.949026,0.000134,2]
[403846463,1769593839779,-779.0,0.000134,2]
[403846465,1769593839788,-903.0,0.00013413,2]
[403846467,1769593839797,-903.0,0.00013415,2]
[403846469,1769593839808,-500.0,0.0001342,2]
[403846471,1769593839817,-150.0,0.0001342,2]
[403846473,1769593839827,-150.0,0.0001342,2]
[403846475,1769593839836,-2434.74389024,0.00013422,2]
[403846477,1769593839846,-903.0,0.00013442,2]
[403846480,1769593839856,-903.0,0.00013443,2]
[403846483,1769593839865,-903.0,0.0001345,2]
[403846484,1769593839875,-903.0,0.00013458,2]
[403846485,1769593839884,-2524.82941417,0.00013477,2]
[403846486,1769593839893,-903.0,0.00013488,2]
[403846488,1769593839903,-28132.28642662,0.00013491,2]
[403846490,1769593839916,-11218.946921,0.00013491,2]
[403846492,1769593839927,-1496.37234667,0.00013491,2]
[403846494,1769593839938,-54167.88104589,0.00013491,2]
[403846965,1769593844764,-151.0,0.00013092,2]
[403846967,1769593844773,-151.0,0.00013092,2]
[403846969,1769593844782,-151.0,0.00013092,2]
[403846971,1769593844791,-191.56716778,0.00013092,2]
[403846973,1769593844800,-99294.26691676,0.00013491,2]
[403846975,1769593844810,-73717.6239486,0.00013491,2]
[403846977,1769593844819,-526.70016866,0.000135,2]
[403846979,1769593844827,-903.0,0.0001352,2]
[403846981,1769593844836,-2618.2481025,0.00013532,2]
[403846983,1769593844845,-903.0,0.00013533,2]
[403846985,1769593844854,-7204.24834247,0.0001354,2]
[403846987,1769593844863,-500.0,0.00013557,2]
[403846989,1769593844871,-150.0,0.00013557,2]
[403846991,1769593844880,-150.0,0.00013557,2]
[403846993,1769593844889,-2715.12328229,0.00013587,2]
[403846995,1769593844898,-151.0,0.0001364,2]
[403846997,1769593844907,-2487.15318209,0.0001364,2]
[403846999,1769593844917,-621.78829552,0.0001364,2]
[403847001,1769593844926,-514.84070869,0.0001364,2]
[403847003,1769593844936,-187.78006525,0.0001364,2]
[403847005,1769593844945,-2815.58284374,0.00013642,2]
[403847007,1769593844954,-300.0,0.00013658,2]
[403847009,1769593844963,-300.0,0.00013658,2]
[403847011,1769593844972,-300.0,0.00013658,2]
[403847013,1769593844981,-300.0,0.00013658,2]
[403847016,1769593844991,-300.0,0.00013658,2]
[403847018,1769593845000,-300.0,0.00013658,2]
[403847020,1769593845009,-300.0,0.00013658,2]
[403847022,1769593845018,-300.0,0.00013658,2]
[403847024,1769593845026,-300.0,0.00013658,2]
[403847026,1769593845035,-300.0,0.00013658,2]
[403847028,1769593845044,-300.0,0.00013658,2]
[403847030,1769593845053,-300.0,0.00013658,2]
[403847032,1769593845062,-300.0,0.00013658,2]
[403847034,1769593845071,-300.0,0.00013658,2]
[403847036,1769593845080,-300.0,0.00013658,2]
[403847038,1769593845089,-600.0,0.00013658,2]
[403847040,1769593845098,-500.0,0.00013694,2]
[403847042,1769593845107,-150.0,0.00013694,2]
[403847044,1769593845117,-250.0,0.00013694,2]
[403847046,1769593845126,-397.43981962,0.00013697,2]
[403847048,1769593845135,-571.95758249,0.00013698,2]
[403847049,1769593845148,-756.27,0.00013698,2]
[403847051,1769593845158,-756.27,0.00013698,2]
[403847053,1769593845167,-756.27,0.00013698,2]
[403847055,1769593845176,-756.27,0.00013698,2]
[403847057,1769593845185,-756.27,0.00013698,2]
[403847059,1769593845194,-756.27,0.00013698,2]
[403847061,1769593845203,-756.27,0.00013698,2]
[403847063,1769593845213,-756.27,0.00013698,2]
[403847065,1769593845222,-756.27,0.00013698,2]
[403847067,1769593845231,-756.27,0.00013698,2]
[403847069,1769593845241,-756.27,0.00013698,2]
[403847071,1769593845250,-756.27,0.00013698,2]
[403847073,1769593845258,-756.27,0.00013698,2]
[403847075,1769593845267,-756.27,0.00013698,2]
[403847077,1769593845276,-756.27,0.00013698,2]
[403847079,1769593845285,-756.27,0.00013698,2]
[403847081,1769593845294,-756.27,0.00013698,2]
[403847083,1769593845304,-756.27,0.00013698,2]
[403847085,1769593845312,-756.27,0.00013698,2]
[403847087,1769593845322,-756.27,0.00013698,2]
[403847089,1769593845331,-756.27,0.00013698,2]
[403847091,1769593845341,-756.27,0.00013698,2]
[403847093,1769593845350,-756.27,0.00013698,2]
[403847095,1769593845358,-756.41785257,0.00013698,2]
[403847097,1769593845367,-500.0,0.00013698,2]
[403847099,1769593845376,-500.0,0.00013698,2]
[403847101,1769593845385,-500.0,0.00013698,2]
[403847103,1769593845394,-500.0,0.00013698,2]
[403847105,1769593845402,-500.0,0.00013698,2]
[403847107,1769593845411,-500.0,0.00013698,2]
[403847109,1769593845420,-182.78369095,0.00013698,2]
[403847111,1769593845429,-500.0,0.00013698,2]
[403847113,1769593845438,-500.0,0.00013698,2]
[403847115,1769593845447,-231.9426637,0.00013698,2]
[403847117,1769593845455,-493.63025993,0.00013698,2]
[403847119,1769593845464,-500.0,0.00013698,2]
[403847121,1769593845473,-500.0,0.00013698,2]
[403847123,1769593845482,-500.0,0.00013698,2]
[403847124,1769593845491,-500.0,0.00013698,2]
[403847126,1769593845500,-500.0,0.00013698,2]
[403847128,1769593845509,-500.0,0.00013698,2]
[403847130,1769593845519,-500.0,0.00013698,2]
[403847132,1769593845528,-500.0,0.00013698,2]
[403847134,1769593845537,-500.0,0.00013698,2]
[403847136,1769593845547,-500.0,0.00013698,2]
[403847138,1769593845556,-500.0,0.00013698,2]
[403847140,1769593845565,-500.0,0.00013698,2]
[403847142,1769593845573,-500.0,0.00013698,2]
[403847144,1769593845583,-500.0,0.00013698,2]
[403847146,1769593845594,-500.0,0.00013698,2]
[403847148,1769593845603,-500.0,0.00013698,2]
[403847150,1769593845612,-500.0,0.00013698,2]
[403847152,1769593845621,-500.0,0.00013698,2]
[403847154,1769593845630,-500.0,0.00013698,2]
[403847156,1769593845639,-621.89,0.00013698,2]
[403847158,1769593845648,-500.0,0.00013698,2]
[403847160,1769593845657,-500.0,0.00013698,2]
[403847162,1769593845666,-500.0,0.00013698,2]
[403847164,1769593845674,-199.72375222,0.00013698,2]
[403847166,1769593845684,-500.0,0.00013698,2]
[403847168,1769593845693,-500.0,0.00013698,2]
[403847170,1769593845702,-520.34475145,0.00013698,2]